Cogmind - Beta 15 @@@ ROGUE MODE // 2025.08.03 @ 14:38:00 Player: FrigidRock Result: Destroyed by O2-YST(R) with Subdweller Laser Performance ------------- Evolutions (0) 0 Regions Visited (3) 600 Robots Destroyed (7) 35 Value Destroyed (133) 133 Prototype IDs (0) 0 Alien Tech Used (0) 0 Bonus (0) 0 TOTAL SCORE: 768 Bonus ------- None Cogmind --------- Core Integrity 0/250 Matter 290/300 Energy 117/125 System Corruption 1% Temperature Cool (6) Movement Core (100) Ox1 Location -10/Subcaves Parts ------- > --- POWER (1) -------- Light Ion Engine > --- PROPULSION (2) --- (None) > --- UTILITY (2) ------ Structural Scanner > --- WEAPON (2) ------- Small Laser > --- INVENTORY (5) ---- Huge Storage Unit Peak State ------------ > --- POWER ------------ Ion Engine > --- PROPULSION ------- Aluminum Leg Aluminum Leg > --- UTILITY ---------- Heat Sink Small Storage Unit > --- WEAPON ----------- EM Pulse Gun Light Assault Rifle > --- INVENTORY -------- Light Ion Engine Light Ion Engine Aluminum Leg Huge Storage Unit Small Laser [Rating: 7] Favorites ----------- Power Ion Engine Engine Ion Engine Propulsion Aluminum Leg Leg Aluminum Leg Wheel Wheel Utility Small Storage Unit Device Structural Scanner Storage Small Storage Unit Weapon Light Assault Rifle Energy Gun EM Pulse Gun Ballistic Gun Light Assault Rifle Build | -11 -10 -10 -10 ------- Run | Yrd Mat Min Sub Slots Evolved . | . . . . Power . | . . . . Propulsion . | . . . . Utility . | . . . . Weapon . | . . . . Parts Attached 15 | 7 . 7 1 Power 2 | 2 . . . Engine 2 | 2 . . . Core . | . . . . Reactor . | . . . . Propulsion 6 | 2 . 4 . Treads . | . . . . Leg 3 | 2 . 1 . Wheel 3 | . . 3 . Hover . | . . . . Flight . | . . . . Utility 4 | 1 . 3 . Device 3 | . . 3 . Storage 1 | 1 . . . Processor . | . . . . Hackware . | . . . . Protection . | . . . . Artifact . | . . . . Weapon 3 | 2 . . 1 Energy Gun 2 | 1 . . 1 Energy Cannon . | . . . . Ballistic Gun 1 | 1 . . . Ballistic Cannon . | . . . . Launcher . | . . . . Special Weapon . | . . . . Impact Weapon . | . . . . Slashing Weapon . | . . . . Piercing Weapon . | . . . . Special Melee Weapon . | . . . . Unidentified Prototypes . | . . . . Corrupted Parts 1 | . . 1 . System Corruption 1 | . . 1 . Parts Lost 4 | . . . 4 Power . | . . . . Propulsion 2 | . . . 2 Utility 1 | . . . 1 Weapon 1 | . . . 1 Highest Loss Streak 3 | . . . 3 To Critical Strikes . | . . . . Average Backups 2 | . 1 4 1 Power . | . 1 1 . Propulsion . | . . 1 . Utility . | . . 1 1 Weapon . | . . . . Tool/Special . | . . . . Unused Backups 3 | . . 2 1 Power 1 | . . 1 . Propulsion 1 | . . 1 . Utility 1 | . . . 1 Weapon . | . . . . Tool/Special . | . . . . Average Slot Usage (%) 79 | . 85 87 67 Engine 13 | . 14 13 14 Leg 14 | . 28 16 . Wheel 9 | . . 12 16 Device 14 | . . 16 28 Storage 6 | . 14 7 . Energy Gun 7 | . 14 8 . Ballistic Gun 11 | . 14 14 7 Peak Build Rating 7 | 6 6 7 6 Average Rating 5 | 4 6 6 4 On Entrance 4 | . 6 6 6 Naked Turns . | . . . . Heaviest Build 14 | 13 13 14 6 Greatest Support 20 | 20 20 20 20 Greatest Overweight (x) 2 | 2 . . 1 Average Overweight (x) . | . . . . Largest Inventory Capacity 8 | 8 8 8 5 Average Capacity 6 | 6 8 6 5 Most Carried 5 | 1 3 5 5 Average Carried 3 | . 1 4 3 Final Capacity 8 | 8 8 5 5 Final Carried 5 | 1 3 5 1 Class Distribution -------------------- 66% | Mutant 33% | Scavenger-Mutant Dominant Class ---------------- Mutant | -10/Materials Mutant | -10/Mines Scavenger-Mutant | -10/Subcaves Resources | -11 -10 -10 -10 ----------- Run | Yrd Mat Min Sub Matter Collected 386 | 215 55 108 8 Remotely . | . . . . Salvage Created 361 | . 103 258 . Parts 24 | . 9 15 . Haulers Intercepted 1 | . 1 . . Recyclers Shooed 2 | . . 2 . Parts Field Recycled . | . . . . Retrieved Matter . | . . . . Parts Self-Destructed 5 | . . . 5 Prevented . | . . . . Kills | -11 -10 -10 -10 ------- Run | Yrd Mat Min Sub Combat Hostiles Destroyed 3 | . 1 2 . Guns 3 | . 1 2 . Classes Destroyed 4 | . 2 2 . Builder 2 | . . 2 . Hauler 1 | . 1 . . Recycler 1 | . . 1 . Grunt 3 | . 1 2 . Best Kill Streak 3 | . 2 3 . Combat Bots Only 2 | . 1 2 . Max Kills in Single Turn 1 | . 1 1 . Gunslinging . | . . . . Exploded . | . . . . Melee . | . . . . Uniques/NPCs Destroyed . | . . . . Combat | -11 -10 -10 -10 -------- Run | Yrd Mat Min Sub Hostile Shots Fired 42 | . 3 24 15 Missed 10 | . 2 5 3 Hits 32 | . 1 19 12 Projectile 32 | . 1 19 12 AOE 4 | . . . 4 Damage Taken 674 | . 10 283 381 Core 265 | . . 71 194 Absorbed by Shields . | . . . . Core Remaining (%) 100 | 100 . . . Volleys Fired 23 | . 3 17 3 Largest 2 | . 2 2 1 Hottest 60 | . 60 60 40 Shots Fired 41 | . 6 32 3 Gun 41 | . 6 32 3 Cannon . | . . . . Launcher . | . . . . Special . | . . . . Kinetic 20 | . 3 17 . Thermal 3 | . . . 3 Explosive . | . . . . Electromagnetic 18 | . 3 15 . Robot Hit Streak 7 | . 4 7 2 Robot Miss Streak 1 | . . 1 1 Penetration Max . | . . . . Secondary Targets 1 | . . 1 . Max Gunslinging Chain 1 | . . 1 . Shots Hit Robots 29 | . 4 23 2 Core Hits 9 | . 2 7 . Critical Kills . | . . . . Critical Parts Destroyed . | . . . . Critical Strikes . | . . . . Melee Attacks . | . . . . Impact . | . . . . Slashing . | . . . . Piercing . | . . . . Sneak Attacks . | . . . . Combat Hostiles . | . . . . Follow-up Attacks . | . . . . Damage Inflicted 362 | . 53 285 24 Guns 330 | . 53 253 24 Cannons . | . . . . Explosions 32 | . . 32 . Melee . | . . . . Ramming . | . . . . Kinetic 87 | . 9 78 . Thermal 56 | . . 32 24 Explosive . | . . . . Electromagnetic 219 | . 44 175 . Impact . | . . . . Slashing . | . . . . Piercing . | . . . . Highest Corruption 1 | . . 1 1 Average Corruption 1 | . . 1 1 Corruption Purged . | . . . . Corruption Blocked . | . . . . Effects 3 | . . . 3 Message Errors 1 | . . . 1 Matter Fused 1 | . . . 1 Data Loss (minor) 1 | . . . 1 Overload Shots . | . . . . Overflow Damage . | . . . . Projectiles . | . . . . Explosions . | . . . . Melee . | . . . . Knockbacks . | . . . . Impact . | . . . . Kinetic . | . . . . Secondary . | . . . . Self-Inflicted Damage 36 | . . 36 . Shots 1 | . . 1 . Rammed . | . . . . Targets Rammed . | . . . . Kicked . | . . . . Crushed . | . . . . Highest Temperature 190 | . 40 190 . Average Temperature 89 | . 23 106 . Received Heat Transfer 186 | . 6 138 42 Siege Activations . | . . . . Martial Activations . | . . . . Shielding Activations . | . . . . Robots Disrupted . | . . . . Combat Hostiles . | . . . . Robots Corrupted . | . . . . Combat Hostiles . | . . . . Parts Fried 1 | . . 1 . Impact Corruptions . | . . . . Robots Melted . | . . . . Combat Hostiles . | . . . . Parts Melted . | . . . . Heat Transferred 100 | . . 50 50 Parts Sabotaged . | . . . . Parts Stolen . | . . . . Parts Stripped . | . . . . Power Chain Reactions 1 | . . 1 . Alert | -11 -10 -10 -10 ------- Run | Yrd Mat Min Sub Maximum Alert Level . | . . . . Low Security (%) 100 | 100 100 100 . Level 1 . | . . . . Level 2 . | . . . . Level 3 . | . . . . Level 4 . | . . . . Level 5 . | . . . . High Security . | . . . . Max Security . | . . . . Peak Influence 55 | . 22 55 . Initial . | . . . . Average 14 | . 5 30 . Influence Increases 118 | . 47 71 . Destroy 0b10 Robot/C 60 | . 20 40 . Destroy 0b10 Robot/NC 20 | . 5 15 . Destroy Leader 12 | . 2 10 . Successful Hack 20 | . 20 . . Destroy Structure 6 | . . 6 . Influence Decreases 118 | . 47 56 15 Entered New Map 8 | . . . 8 Time Decay 110 | . 47 56 7 Squads Dispatched 1 | . 1 . . Investigation 1 | . 1 . . Extermination . | . . . . Reinforcement . | . . . . Assault . | . . . . Garrison . | . . . . Intercept . | . . . . Searches Triggered . | . . . . Construction Impeded . | . . . . Haulers Reinforced . | . . . . Active Scanning Responses . | . . . . Cargo Convoy Interrupts . | . . . . Stealth | -11 -10 -10 -10 --------- Run | Yrd Mat Min Sub Distress Signals . | . . . . Communications Jammed . | . . . . Distress Signals . | . . . . Times Spotted 9 | . 1 2 6 Peak Tracking Total 3 | . 3 2 3 Tactical Retreats 2 | . . . 2 Traps | -11 -10 -10 -10 ------- Run | Yrd Mat Min Sub Traps Triggered 1 | . 1 . . Indirectly . | . . . . Trap Hack Attempts . | . . . . Triggered . | . . . . Disarmed . | . . . . Reprogrammed . | . . . . Reused 2 | . . . 2 Traps Extracted . | . . . . Installed 3 | . . . 3 Triggered . | . . . . Most Traps Carried 3 | . . 2 3 Machines | -11 -10 -10 -10 ---------- Run | Yrd Mat Min Sub Machines Disabled . | . . . . Max in Single Turn . | . . . . Machines Repaired . | . . . . Machines Dismantled . | . . . . Machines Sabotaged . | . . . . Overloaded Fab Kills . | . . . . Hacking | -11 -10 -10 -10 --------- Run | Yrd Mat Min Sub Machines Accessed 2 | . 2 . . Terminals 2 | . 2 . . Fabricators . | . . . . Repair Stations . | . . . . Recycling Units . | . . . . Scanalyzers . | . . . . Garrison Access . | . . . . Total Hacks 3 | . 3 . . Successful 3 | . 3 . . Failed . | . . . . Catastrophic . | . . . . Database Lockouts . | . . . . Manual 4 | . 4 . . Terminals 3 | . 3 . . Fabricators . | . . . . Repair Stations . | . . . . Recycling Units . | . . . . Scanalyzers . | . . . . Garrison Access . | . . . . Terminal Hacks 3 | . 3 . . Robot Analysis 2 | . 2 . . Branch Access Points 1 | . 1 . . Fabricator Hacks . | . . . . Repair Station Hacks . | . . . . Recycling Unit Hacks . | . . . . Scanalyzer . | . . . . Garrison Access Hacks . | . . . . Unauthorized Hacks . | . . . . Terminals . | . . . . Fabricators . | . . . . Repair Stations . | . . . . Recycling Units . | . . . . Scanalyzers . | . . . . Garrison Access . | . . . . Data Cores Recovered . | . . . . Used . | . . . . Hacking Detections . | . . . . Full Trace Events . | . . . . Feedback Events . | . . . . Feedback Blocked . | . . . . Robot Schematics Acquired . | . . . . Robots Built . | . . . . Authchips . | . . . . Time . | . . . . Total Robot Build Rating . | . . . . Part Schematics Acquired . | . . . . Parts Built . | . . . . Authchips . | . . . . Time . | . . . . Total Part Build Rating . | . . . . Parts Repaired . | . . . . Time . | . . . . Parts Recycled . | . . . . Recycled Matter . | . . . . Retrieved Matter . | . . . . Retrieved Components . | . . . . Parts Scanalyzed . | . . . . Part Schematics Acquired . | . . . . Parts Damaged . | . . . . Bothacking | -11 -10 -10 -10 ------------ Run | Yrd Mat Min Sub Used RIF Installer . | . . . . Robots Hacked . | . . . . Non-combat . | . . . . Combat . | . . . . Robot Hacks Applied . | . . . . Relay Couplers Released . | . . . . Fabnet Peak Effective % . | . . . . Robots Rewired . | . . . . Allies Hacked . | . . . . Hacks Repelled . | . . . . Allies | -11 -10 -10 -10 -------- Run | Yrd Mat Min Sub Total Allies . | . . . . Largest Group . | . . . . Highest-Rated Group . | . . . . Highest-Rated Ally . | . . . . Total Orders . | . . . . Ally Attacks . | . . . . Total Damage . | . . . . Kills . | . . . . Allies Corrupted . | . . . . Allies Melted . | . . . . Intel | -11 -10 -10 -10 ------- Run | Yrd Mat Min Sub Active Infowar (turns) 221 | . . 67 154 Terrain 197 | . . 49 148 Structural 221 | . . 67 154 Robot Analysis Total 2 | . 2 . . Derelict Logs Recovered . | . . . . Drone Launches . | . . . . Drone Recoveries . | . . . . Exploration | -11 -10 -10 -10 ------------- Run | Yrd Mat Min Sub Turns Passed 475 | 55 134 132 154 Spaces Moved 380 | 40 104 71 165 Core 72 | 14 . . 58 Treads . | . . . . Legs 148 | 26 104 18 . Wheels 160 | . . 53 107 Hover . | . . . . Flight . | . . . . Fastest Speed 50 | 50 120 80 80 Average Speed 99 | 113 120 90 87 Slowest Speed 150 | 150 120 120 100 Overloaded Moves . | . . . . Propulsion Burnouts . | . . . . Robots Hopped . | . . . . Potential Cave-ins . | . . . . Cave-ins Triggered . | . . . . Exploration Rate (%) 13 | 3 22 10 18 Regions Visited 3 Branch Regions 2 Pre-discovered Areas . | . . . . Known Exits Taken 1 | . 1 . . Unknown Exits Taken 2 | 1 . 1 . Scrap Searched . | . . . . Spaces Dug . | . . . . Terrain Destroyed 8 | . . 8 . Melee . | . . . . Projectile . | . . . . AOE 8 | . . 8 . Terrain Rammed . | . . . . Walls Destroyed . | . . . . Machines Disabled . | . . . . Actions | -11 -10 -10 -10 --------- Run | Yrd Mat Min Sub Total 439 | 46 108 110 175 Wait . | . . . . Move 377 | 39 103 70 165 Hop . | . . . . Pick Up 7 | . 2 5 . Fast Attach 12 | 6 . 6 . Attach 2 | . . 1 1 Detach . | . . . . Swap 3 | 1 . 2 . Drop 12 | . . 9 3 Fire 23 | . 3 17 3 Melee . | . . . . Ram . | . . . . Kick . | . . . . Crush . | . . . . Escape Stasis . | . . . . Rewire . | . . . . Trap 3 | . . . 3 Miscellaneous . | . . . . Route ------- -11/Scrapyard -10/Materials (discovered 3 exits: [*Mat] / *Min x2) -10/Mines -10/Subcaves History --------- Turn | Location | Event 17 | -11/Scrapyard | Discovered new exit (range 14) 56 | -11/Scrapyard | Entered Materials 67 | -10/Materials | Identified exit to Mines 169 | -10/Materials | Discovered new exit (range 12) 190 | -10/Materials | Entered Mines 295 | -10/Mines | Discovered new exit (range 12) 306 | -10/Mines | Found a hidden stash of uninstalled traps 322 | -10/Mines | Entered Subcaves 323 | -10/Subcaves | Approached by a straggling Scientist 407 | -10/Subcaves | Ambushed by Subdweller buried in earth 410 | -10/Subcaves | Core integrity fell below 50% 416 | -10/Subcaves | Core integrity fell below 20% 442 | -10/Subcaves | Lost 3 parts (2n1w) 476 | -10/Subcaves | Destroyed by O2-YST(R) with Subdweller Laser Last Messages --------------- never make it past all the Subs lurking out here." 00326_ YW-A0V(c): "Hey, let me tag along and I can get us both out of this nasty situation. At least I think I can... The group I got separated from was talking about a shortcut back to the UFD." 00350_ G1FEQQYU|OOKHFCX,R9OVAEGFUCQVW7 00366_ System corrupted: Component data lost. YW-A0V(c): "I think it's somewhere south of here" 00383_ Dropped Heavy Explosive Trap. 00384_ Installed Heavy Explosive Trap. 00405_ Dropped Heavy Explosive Trap. 00405_ Installed Heavy Explosive Trap. 00407_ Lgt. Assault Rifle destroyed. 00407_ Wheel destroyed. 00408_ OF-CWC(R): "ARGHSUB!" 00411_ Wheel destroyed. 00427_ Dropped Heavy Explosive Trap. 00428_ Installed Heavy Explosive Trap. 00441_ System corrupted: Matter fused (-8). 00465_ Acquired 8 matter. 00470_ Terrain Scanner destroyed. Map ----- +----------------------------------------------------+ | ?????????????????????????????## ??###### ######## | | ?????????????????????????????????#???### ###### | | ?????????????????????????????????????## ##### | | ?????????????????????????????????????## | | ?????????????????????????????????????## | | ?????????????????????????????????????### ## | | ?????????????????????????????????????### ### | | ?????????????????????????????????#????######## # | | ????????????????????????????????????#?######## # | | ?????????????????????????????????############# # | | ????????????????????????????? ############# | | ?????????????????????????????? # # # ## | | ???????????????###??????????? | | ???????????????## ???????????? | | ???????????????# ?????????????#? ### # | | ????????????????? ???????????????###### | | ?????????????????? ????????????######## | | ??????????????????# ?????????######## ##### | | ??????????????????## ????? ###### ####### | | ??????????????????## ???######## ###??## | | ????????????????????# ? ### ### ###????# | | ????????????????????## ?## #### #### ????? | | ????????????????????## ## ### ### ?????? | | ????????????????###### R### ##????????? | | ????????????????## ## ## ###????????? | | ????????????????## % @ %% ########????????? | | ????????????????### #######?????????? | | ????????????????#### ## ##??????????????? | | ?????????????????### #### ##??????????????? | | ??????????????????## ??##### ##? ????????????? | | ?????????????????? ??# ###### ??????????????? | | ??????????????????????????##### ????????????? | | ?????????????????????????????### ???????????? | | ????????????????????#????????######## ??????????? | | ???????????????????????????????###### ?????????? | | ??????????????????????????????????????? ?????????? | | ?????????????????????????????????????????????????? | | ?????????????????????????????????????????????????? | | ?????????????????????????????????????????????????? | | ?????????????????????????????????????????????????? | | ?????????????????????????????????????????????????? | | ?????????????????????????????????????????????????? | | ?????????????????????????????????????????????????? | | ?????????????????????????????????????????????????? | | ?????????????????????????????????????????????????? | | ?????????????????????????????????????????????????? | | ?????????????????????????????????????????????????? | | ?????????????????????????????????????????????????? | | ?????????????????????????????????????????????????? | | ?????????????????????????????????????????????????? | +----------------------------------------------------+ Best States ------------- Heat Dissipation 35 Energy Generation 10 Energy Capacity 250 Matter Stores 300 Matter Capacity 300 Sight Range 16 Terrain Scan Range 14 Terrain Scan Density 10 Evasion (%) 55 Item Schematics ----------------- None Robot Schematics ------------------ None Fabricated ------------ Nothing Repaired ---------- Nothing Alien Tech Used ----------------- None Achievements -------------- None Challenges ------------ None Game ------ Seed ArmageddonHelicalRipper Manual? 0 Play Time 00:05:35 Cumulative 307.5 hours Start 2025.08.03 @ 14:33:41 End 2025.08.03 @ 14:38:00 Sessions 1 Manual Loads 0 Difficulty Rogue Special Mode None Game No. 129 Rogue 58 Adventurer 68 Explorer 3 Win Type - Total 24 Types 16/1/1/4/1/0/0/0/0/1 Lore% 76 Gallery% 73 Achievement% 71 Wizard Run 0 Options --------- Layout 0 ASCII 0 Keyboard 0 Movement Numpad Keybinds 0 Fullscreen 1 Font 24/Smallcaps Map View 76x50 Zoom Use 0% Tactical HUD 1 Map Filters NONE Filters NONE Steam 1 RUN: e3827d67-bccf-4ec2-ad57-638bf15d5501